bitfinex/quotes_SOLUSD_20240620
["timestamp","ask_amount","ask_price","bid_price","bid_amount"]
[1718876701232,7.2676,137.6,137.57,0.34]
[1718876703541,18.1621,137.65,137.58,0.17]
[1718876703846,7.2655,137.64,137.59,14.3777]
[1718876704060,7.2655,137.64,137.6,7.11]
[1718876704532,7.2648,137.65,137.61,0.17]
[1718876704746,7.2627,137.69,137.64,7.2652]
[1718876704937,18.1536,137.72,137.65,7.28]
[1718876705131,7.2632,137.68,137.65,7.11]
[1718876705323,7.2639,137.67,137.62,0.17]
[1718876705538,7.11,137.68,137.62,15.0562]
[1718876705749,18.1553,137.71,137.62,15.0562]
[1718876705750,14.374,137.67,137.62,15.0562]
[1718876706047,14.3733,137.68,137.63,14.3756]
[1718876706240,7.2633,137.68,137.63,14.3756]
[1718876706655,7.2638,137.67,137.63,7.11]
[1718876706831,7.2644,137.66,137.62,7.62]
[1718876707033,7.2644,137.66,137.62,0.34]
[1718876707034,14.3744,137.66,137.62,0.34]
[1718876709456,7.11,137.66,137.62,7.6063]
[1718876709957,7.11,137.66,137.61,21.0296]
[1718876710165,7.11,137.64,137.61,13.2877]
[1718876710449,7.2653,137.64,137.61,6.021]
[1718876710746,7.11,137.65,137.61,6.021]
[1718876710954,14.376,137.63,137.58,30.7391]
[1718876711141,7.11,137.63,137.59,7.2679]
[1718876711344,7.2649,137.65,137.6,7.2673]
[1718876711680,7.11,137.63,137.58,16.361]
[1718876711844,14.3761,137.63,137.58,30.7392]
[1718876712152,14.3761,137.63,137.58,23.6292]
[1718876712351,7.11,137.63,137.59,7.2678]
[1718876712740,7.11,137.63,137.59,7.76553445]
[1718876712946,14.3754,137.64,137.59,14.87553445]
[1718876713142,7.11,137.64,137.6,7.2673]
[1718876713343,14.3753,137.64,137.6,7.2673]
[1718876713827,14.3753,137.64,137.59,14.3777]
[1718876714946,7.2648,137.65,137.6,0.34]
[1718876715259,7.2654,137.64,137.6,7.4372]
[1718876715471,7.2654,137.64,137.6,7.28]
[1718876715937,7.2654,137.64,137.59,7.4377]
[1718876715938,7.2659,137.63,137.59,0.34]
[1718876716260,7.11,137.64,137.59,0.34]
[1718876716440,7.266,137.63,137.59,7.45]
[1718876717257,7.266,137.63,137.59,14.7178]
[1718876717772,7.11,137.64,137.59,0.34]
[1718876717941,7.266,137.63,137.59,0.34]
[1718876718140,7.2664,137.62,137.58,23.471]
[1718876718568,7.2664,137.62,137.58,16.361]
[1718876718735,14.3758,137.64,137.59,0.17]
[1718876718939,14.3758,137.64,137.59,14.7176]
[1718876719554,14.3758,137.64,137.59,7.6076]
[1718876719761,7.2659,137.63,137.59,7.6076]
[1718876720139,14.3755,137.64,137.59,7.6076]
[1718876720469,7.2659,137.63,137.59,0.17]
[1718876720762,7.2659,137.63,137.58,23.6293]
[1718876721255,7.2663,137.62,137.58,30.7393]
[1718876721462,14.376,137.63,137.58,30.7393]
[1718876722764,14.376,137.63,137.58,23.6293]
[1718876722966,14.376,137.63,137.58,30.7393]
[1718876723568,7.2664,137.62,137.58,16.361]
[1718876723866,7.2664,137.62,137.58,23.471]
[1718876724344,7.2664,137.62,137.58,16.361]
[1718876725062,7.2669,137.61,137.58,16.361]
[1718876725467,14.3765,137.62,137.58,16.361]
[1718876726761,7.267,137.61,137.57,6.9275]
[1718876727146,14.377,137.61,137.57,6.5875]
[1718876727458,14.3774,137.6,137.56,0.17]
[1718876727647,7.2674,137.6,137.56,0.17]
[1718876727848,7.2679,137.59,137.55,22.561]
[1718876728176,7.11,137.6,137.56,7.2695]
[1718876728467,14.3772,137.61,137.56,7.2695]
[1718876728668,7.2666,137.62,137.57,7.269]
[1718876728890,19.28117877,137.66,137.59,6.2217]
[1718876728891,13.10707877,137.66,137.59,6.2217]
[1718876729040,7.11,137.66,137.59,6.2217]
[1718876729240,7.2644,137.66,137.6,7.11]
[1718876729460,7.2649,137.65,137.6,14.3772]
[1718876729665,7.2661,137.63,137.59,6.2217]
[1718876729882,47.33042524,137.67,137.59,20.5994]
[1718876729883,7.2655,137.64,137.59,20.5994]
[1718876730050,7.265,137.65,137.6,14.5472]
[1718876730245,7.2645,137.66,137.61,7.2668]
[1718876730468,7.11,137.65,137.61,7.2668]
[1718876730669,6.2947,137.7,137.63,7.2657]
[1718876730880,7.2637,137.67,137.63,7.11]
[1718876731170,7.2644,137.66,137.63,7.11]
[1718876731370,14.3739,137.67,137.62,14.3763]
[1718876731581,7.2643,137.66,137.62,14.3763]
[1718876731876,7.2648,137.65,137.61,22.9745]
[1718876732054,18.1598,137.67,137.61,15.6945]
[1718876732265,7.2668,137.62,137.59,6.2217]
[1718876733184,7.11,137.62,137.59,6.2217]
[1718876733368,7.2655,137.64,137.59,6.2217]
[1718876733766,7.2648,137.65,137.6,7.267]
[1718876733970,31.26247229,137.69,137.61,0.34]
[1718876734170,18.1569,137.69,137.61,0.34]
[1718876734692,7.264,137.67,137.62,7.2662]
[1718876734978,7.2642,137.66,137.62,7.2662]
[1718876735186,13.27557229,137.7,137.6,0.34]
[1718876735187,13.10557229,137.7,137.6,0.34]
[1718876735368,7.2624,137.7,137.65,7.2647]
[1718876736184,18.1538,137.72,137.64,7.4351]
[1718876736387,7.2632,137.68,137.64,0.17]
[1718876736595,7.2638,137.67,137.63,0.17]
[1718876736757,7.2642,137.66,137.63,0.17]
[1718876737174,7.2639,137.67,137.63,0.17]
[1718876737484,7.2639,137.67,137.62,7.2661]
[1718876737783,7.2648,137.65,137.61,0.17]
[1718876738082,7.2644,137.66,137.61,7.2667]
[1718876738876,7.2648,137.65,137.6,0.34]
[1718876739091,7.2648,137.65,137.6,7.6072]
[1718876739391,18.158,137.68,137.6,7.2672]
[1718876739566,18.158,137.68,137.59,6.2217]
[1718876739567,7.2644,137.66,137.59,6.2217]
[1718876739769,7.2644,137.66,137.61,7.2667]
[1718876740075,7.2644,137.66,137.62,7.2663]
[1718876740258,7.2634,137.68,137.63,7.2656]
[1718876741276,7.2637,137.67,137.63,7.2656]
[1718876741477,7.2637,137.67,137.62,7.2661]
[1718876741663,7.2637,137.67,137.63,0.17]
[1718876741990,7.2643,137.66,137.63,0.17]
[1718876742768,7.2643,137.66,137.62,0.17]
[1718876742972,7.2643,137.66,137.62,0.34]
[1718876743178,18.158,137.68,137.59,6.2217]
[1718876743382,7.2649,137.65,137.6,7.6074]
[1718876743792,7.2653,137.64,137.6,7.6074]
[1718876744161,7.265,137.65,137.6,7.6074]
[1718876746291,34.44441248,137.7,137.62,7.2659]
[1718876746474,7.2637,137.67,137.62,7.2659]
[1718876746677,7.2637,137.67,137.63,7.2657]
[1718876746865,7.2637,137.67,137.62,7.2662]
[1718876747193,7.2644,137.66,137.61,7.2668]
[1718876747973,7.2639,137.67,137.62,7.4362]
[1718876748181,7.2639,137.67,137.62,7.2662]
[1718876748581,7.2633,137.68,137.63,7.2658]
[1718876748963,7.2624,137.7,137.65,7.2643]
[1718876749191,7.2624,137.7,137.65,13.485]
[1718876749489,7.2634,137.68,137.65,6.2207]
[1718876749692,7.2637,137.67,137.65,6.2207]
[1718876750072,7.2634,137.68,137.65,6.2207]
[1718876750389,13.10441248,137.73,137.62,0.34]
[1718876750606,7.2643,137.66,137.63,0.17]
[1718876750798,7.2643,137.66,137.62,0.17]
[1718876751114,7.2643,137.66,137.62,0.34]
[1718876751411,13.10303495,137.71,137.62,7.6063]
[1718876751412,7.2639,137.67,137.62,7.6063]
[1718876752189,15.1713,137.69,137.61,6.2207]
[1718876752492,45.0,137.68,137.61,6.2207]
[1718876752676,7.2649,137.65,137.61,6.2207]
[1718876754409,7.266,137.63,137.61,6.2207]
[1718876754587,7.2667,137.62,137.58,15.7511]
[1718876755103,7.2665,137.62,137.58,15.7511]
[1718876755270,18.1619,137.66,137.58,15.7511]
[1718876755271,7.2659,137.63,137.58,23.0194]
[1718876756116,7.2654,137.64,137.59,7.2678]
[1718876756303,7.2649,137.65,137.6,7.2674]
[1718876756517,22.60348923,137.67,137.57,6.3907]
[1718876756518,1.26348923,137.67,137.57,6.3907]
[1718876756819,7.267,137.61,137.55,7.2699]
[1718876757117,7.267,137.61,137.55,7.2696]
[1718876757323,7.267,137.61,137.56,7.2694]
[1718876757613,7.2669,137.61,137.56,7.2695]
[1718876758112,7.2665,137.62,137.56,7.2695]
[1718876758310,7.2669,137.61,137.55,7.27]
[1718876758812,7.2669,137.61,137.56,7.2695]
[1718876759114,7.2669,137.61,137.55,7.2699]
[1718876759317,39.8436,137.64,137.55,7.2699]
[1718876759318,7.2676,137.6,137.55,7.2699]
[1718876759485,7.2669,137.61,137.55,7.2699]
[1718876759681,7.2669,137.61,137.56,7.2694]
[1718876760097,7.2665,137.62,137.56,7.2694]
[1718876760322,18.3336,137.64,137.55,7.27]
[1718876760499,7.2668,137.62,137.56,7.2693]
[1718876761616,7.2657,137.64,137.59,0.17]
[1718876761818,19.42388923,137.67,137.6,6.2207]
[1718876761819,1.26348923,137.67,137.6,6.2207]
[1718876762023,7.2644,137.66,137.61,4.35406777]
[1718876762223,15.1713,137.69,137.6,21.9718]
[1718876762224,7.2649,137.65,137.6,21.9718]
[1718876762726,18.1582,137.68,137.6,21.9718]
[1718876762727,7.2653,137.64,137.6,21.9718]
[1718876762940,7.2649,137.65,137.6,21.9718]
[1718876763497,34.15022136,137.69,137.61,0.17]
[1718876763723,34.15022136,137.69,137.62,7.2663]
[1718876764033,21.04353941,137.69,137.62,7.2663]
[1718876764313,7.2627,137.69,137.64,7.2653]
[1718876764522,271.5552,137.71,137.63,7.2657]
[1718876764710,7.2637,137.67,137.63,0.17]
[1718876764884,7.2637,137.67,137.63,0.34]
[1718876766528,7.2643,137.66,137.6,29.4091]
[1718876766692,7.2643,137.66,137.61,0.17]
[1718876767026,7.2644,137.66,137.6,29.2392]
[1718876767213,7.2644,137.66,137.61,7.2668]
[1718876768424,7.2644,137.66,137.6,29.2391]
[1718876769211,7.2644,137.66,137.61,7.2668]
[1718876769589,7.2634,137.68,137.61,0.17]
[1718876769925,13.10471931,137.7,137.64,7.265]
[1718876769926,7.2625,137.7,137.64,7.265]
[1718876770295,7.2625,137.7,137.61,18.847]
[1718876770296,7.2625,137.7,137.65,7.2647]
[1718876770822,7.2627,137.69,137.64,7.2651]
[1718876771653,253.4,137.71,137.63,7.4357]
[1718876771846,7.2639,137.67,137.63,0.17]
[1718876772139,7.2639,137.67,137.62,0.34]
[1718876772346,18.1576,137.69,137.6,21.9718]
[1718876772506,7.2639,137.67,137.61,7.2664]
[1718876772706,7.2639,137.67,137.6,21.9718]
[1718876773135,7.2639,137.67,137.62,7.266]
[1718876773635,7.263,137.69,137.63,0.17]
[1718876773803,253.4,137.71,137.63,0.17]
[1718876774001,253.4,137.71,137.62,7.436]
[1718876774230,18.4956,137.7,137.61,0.17]
[1718876774495,7.2647,137.66,137.61,0.34]
[1718876774612,7.2638,137.67,137.62,7.266]
[1718876774808,18.4956,137.7,137.61,0.34]
[1718876774809,0.34,137.7,137.61,0.34]
[1718876775227,7.2634,137.68,137.61,0.34]
[1718876775432,7.2634,137.68,137.62,0.34]
[1718876775637,7.2634,137.68,137.63,7.4358]
[1718876777113,7.2627,137.69,137.64,7.2651]
[1718876777428,7.2627,137.69,137.63,0.17]
[1718876777429,7.2627,137.69,137.63,7.6056]
[1718876777646,7.2622,137.7,137.65,7.2647]
[1718876777843,7.2622,137.7,137.66,1.4493747]
[1718876778137,7.2627,137.69,137.66,1.4493747]
[1718876778341,7.2627,137.69,137.65,1.4493747]
[1718876778518,7.2627,137.69,137.65,0.17]
[1718876778711,7.2627,137.69,137.65,0.34]
[1718876779940,7.2638,137.67,137.62,7.2661]
[1718876780519,7.2647,137.66,137.61,7.2666]
[1718876781727,7.2647,137.66,137.62,0.34]
[1718876782046,18.1579,137.69,137.6,22.1418]
[1718876782246,7.2658,137.63,137.6,21.9718]
[1718876782751,7.2655,137.64,137.6,21.9718]
[1718876783883,18.1594,137.67,137.57,6.2588]
[1718876783884,18.1623,137.65,137.57,6.2588]
[1718876784349,7.2651,137.65,137.6,7.2673]
[1718876784851,7.2653,137.64,137.59,7.2677]
[1718876785841,7.2658,137.63,137.59,7.2677]
[1718876786144,7.2658,137.63,137.57,6.2588]
[1718876786145,7.2658,137.63,137.58,7.4383]
[1718876787445,7.2654,137.64,137.59,7.2679]
[1718876788441,7.2658,137.63,137.58,10.16717582]
[1718876788830,7.2658,137.63,137.59,7.2679]
[1718876789331,7.2658,137.63,137.58,10.16707582]
[1718876790055,7.2663,137.62,137.58,0.17]
[1718876791829,7.266,137.63,137.58,7.4383]
[1718876792334,7.2664,137.62,137.58,7.4383]
[1718876792845,18.162,137.65,137.59,7.2679]
[1718876792846,7.2659,137.63,137.59,7.2679]
[1718876793258,34.0924,137.67,137.58,0.17]
[1718876793466,7.2642,137.67,137.62,7.266]
[1718876793762,7.2633,137.68,137.63,7.2655]
[1718876793943,7.2633,137.68,137.63,8.49611345]
[1718876794263,7.2638,137.67,137.62,13.7805]
[1718876794669,7.2634,137.68,137.63,7.2658]
[1718876795228,7.2639,137.67,137.62,13.7806]
[1718876796340,7.2643,137.66,137.62,6.3443]
[1718876796536,7.2661,137.63,137.59,6.3443]
[1718876796758,7.2653,137.64,137.59,6.3443]
[1718876796939,7.265,137.65,137.6,7.2674]
[1718876797139,18.158,137.68,137.59,6.3443]
[1718876797140,7.2644,137.66,137.61,7.2667]
[1718876797439,7.2656,137.64,137.59,13.6121]
[1718876798553,7.2655,137.64,137.59,13.6122]
[1718876800858,7.2655,137.64,137.6,7.2674]
[1718876801064,7.2635,137.68,137.63,0.17]
[1718876801369,7.2628,137.69,137.64,6.3443]
[1718876801539,7.2628,137.69,137.65,0.17]
[1718876801740,7.2628,137.69,137.65,0.34]
[1718876804564,7.2623,137.7,137.65,7.6047]
[1718876805067,7.2628,137.69,137.65,0.34]
[1718876805268,18.1515,137.73,137.65,0.34]
[1718876805566,7.2622,137.7,137.65,7.6046]
[1718876806346,7.2617,137.71,137.66,7.2639]
[1718876806660,7.2617,137.71,137.65,0.34]
[1718876807538,7.2617,137.71,137.66,7.264]
[1718876807867,7.2613,137.72,137.67,7.4336]
[1718876808061,7.2613,137.72,137.68,0.17]
[1718876808854,18.1489,137.75,137.68,6.15652933]
[1718876809066,18.1489,137.75,137.67,0.34]
[1718876809067,7.2616,137.71,137.67,0.34]
[1718876809370,18.1489,137.75,137.67,7.6036]
[1718876809371,7.2613,137.72,137.67,7.6036]
[1718876809575,7.2617,137.71,137.67,0.34]
[1718876810052,7.2617,137.71,137.67,0.17]
[1718876812482,7.261,137.73,137.68,7.2629]
[1718876813173,7.26,137.74,137.69,7.2626]
[1718876813561,7.2606,137.73,137.69,7.2626]
[1718876814577,7.2606,137.73,137.68,7.4329]
[1718876815069,21.34,137.76,137.67,15.9064]
[1718876815070,18.1488,137.75,137.67,15.5664]
[1718876815270,7.2625,137.7,137.67,15.5664]
[1718876817272,7.2618,137.71,137.67,15.5664]
[1718876817654,36.6361,137.76,137.67,15.5664]
[1718876817860,7.2607,137.73,137.68,7.2631]
[1718876818367,7.2614,137.72,137.67,22.83]
[1718876819278,7.2616,137.71,137.67,22.83]
[1718876819778,7.2613,137.72,137.67,22.83]
[1718876820362,7.2613,137.72,137.68,7.2631]
[1718876820575,18.1518,137.73,137.64,22.0263]
[1718876820788,7.2635,137.68,137.64,22.0263]
[1718876821172,7.2629,137.69,137.64,29.2915]
[1718876822675,7.2633,137.68,137.64,22.0263]
[1718876823684,7.2628,137.69,137.64,29.2915]
[1718876825261,7.2629,137.69,137.64,29.2915]
[1718876825766,7.2632,137.68,137.64,22.0263]
[1718876826690,33.4512,137.72,137.64,22.0263]
[1718876827001,33.4512,137.72,137.65,7.2647]
[1718876827361,22.34253675,137.78,137.65,0.17]
[1718876827588,7.2593,137.76,137.71,7.2611]
[1718876828567,7.2596,137.75,137.71,7.2611]
[1718876828767,7.26,137.74,137.7,6.3693]
[1718876829490,7.2597,137.75,137.7,13.6314]
[1718876829992,7.2601,137.74,137.7,6.3693]
[1718876831298,7.2608,137.73,137.7,6.3693]
[1718876831789,7.2602,137.74,137.7,6.3693]
[1718876832672,15.0166,137.78,137.7,6.3693]
[1718876832884,7.2592,137.76,137.71,7.2611]
[1718876833384,15.0166,137.78,137.7,6.3693]
[1718876833570,7.2591,137.76,137.71,7.2612]
[1718876834472,7.2591,137.76,137.7,6.3693]
[1718876834679,7.2586,137.77,137.72,7.431]
[1718876836066,18.1445,137.79,137.71,0.17]
[1718876836279,7.26,137.75,137.71,0.17]
[1718876838095,18.1445,137.79,137.71,0.17]
[1718876838285,7.259,137.76,137.71,0.17]
[1718876838796,7.259,137.76,137.71,7.4314]
[1718876840289,6.02136981,137.8,137.71,0.17]
[1718876840593,5.85136981,137.8,137.71,0.51]
[1718876840797,7.2583,137.78,137.73,7.2602]
[1718876842173,7.2585,137.77,137.73,7.2602]
[1718876842887,7.2585,137.77,137.72,7.2608]
[1718876844293,7.2579,137.78,137.73,7.2602]
[1718876844496,7.2586,137.77,137.72,7.2609]
[1718876845289,7.259,137.76,137.71,7.7715]
[1718876845592,18.146,137.78,137.7,6.3693]
[1718876845798,7.2607,137.73,137.7,6.3693]
[1718876845972,7.2602,137.74,137.7,6.3693]
[1718876846592,7.2602,137.74,137.7,13.6314]
[1718876846793,7.2602,137.74,137.7,6.3693]
[1718876847297,13.09537814,137.79,137.71,0.17]
[1718876847485,14.3591,137.76,137.71,14.7013]
[1718876847702,14.3591,137.76,137.71,7.44]
[1718876848003,14.3591,137.76,137.71,14.7012]
[1718876849586,7.1,137.75,137.71,7.6012]
[1718876850199,7.2591,137.76,137.71,7.6012]
[1718876850406,7.1,137.75,137.71,7.6012]
[1718876851195,7.2591,137.76,137.71,7.6012]
[1718876851414,7.1,137.75,137.71,7.6012]
[1718876851587,14.3596,137.75,137.71,7.6012]
[1718876851908,14.3609,137.73,137.7,6.3693]
[1718876852201,14.3613,137.72,137.7,6.3693]
[1718876852423,14.3616,137.71,137.67,6.3487]
[1718876852702,7.1,137.7,137.67,13.6122]
[1718876852877,7.2612,137.72,137.67,13.6122]
[1718876853200,7.1,137.71,137.67,13.6122]
[1718876855114,7.1,137.71,137.67,6.3487]
[1718876855403,7.1,137.68,137.67,6.3487]
[1718876855606,7.1,137.68,137.66,16.661]
[1718876858013,7.2609,137.73,137.68,7.263]
[1718876858186,15.2735,137.75,137.67,7.2634]
[1718876858187,7.1,137.7,137.67,7.2634]
[1718876858508,7.1,137.7,137.66,23.9251]
[1718876859498,14.3622,137.7,137.66,23.9251]
[1718876859692,14.3622,137.7,137.66,16.661]
[1718876859880,14.3622,137.7,137.65,7.2645]
[1718876860082,7.2622,137.7,137.65,7.2645]
[1718876860695,7.1,137.68,137.65,7.2645]
[1718876861734,7.1,137.68,137.66,7.2641]
[1718876862216,7.2622,137.7,137.66,7.2641]
[1718876862393,7.1,137.69,137.66,7.2641]
[1718876862593,7.1,137.68,137.64,6.6887]
[1718876862821,7.1,137.68,137.64,13.9537]
[1718876863935,7.1,137.68,137.65,7.2647]
[1718876864103,7.2629,137.69,137.65,7.2647]
[1718876864427,7.2629,137.69,137.62,16.3748]
[1718876864428,7.1,137.66,137.62,16.3748]
[1718876864633,7.1,137.67,137.62,16.3748]
[1718876864812,7.1,137.67,137.65,7.2644]
[1718876865006,7.1,137.68,137.65,7.2644]
[1718876865427,7.2621,137.7,137.66,7.2641]
[1718876865599,7.1,137.7,137.62,34.5407]
[1718876865803,14.3622,137.7,137.66,7.2639]
[1718876866221,14.3622,137.7,137.65,7.4346]
[1718876866428,7.2627,137.69,137.65,7.4346]
[1718876866625,14.3627,137.69,137.65,7.4346]
[1718876867332,7.1,137.68,137.65,7.4346]
[1718876867822,7.2627,137.69,137.65,7.4346]
[1718876868029,7.1,137.69,137.65,7.4346]
[1718876870039,14.3626,137.69,137.65,7.4346]
[1718876870403,14.3627,137.69,137.65,7.4346]
[1718876871434,7.2627,137.69,137.65,7.4346]
[1718876871630,14.3627,137.69,137.65,7.4346]
[1718876872234,7.1,137.69,137.65,7.4346]
[1718876873236,14.3623,137.7,137.65,7.4346]
[1718876874224,7.1,137.7,137.66,13.7976]
[1718876874427,1.26288706,137.73,137.7,7.2621]
[1718876874629,14.3601,137.74,137.7,7.2621]
[1718876874932,7.1,137.74,137.7,7.2621]
[1718876875432,7.2589,137.77,137.72,14.3607]
[1718876875626,7.2589,137.77,137.71,8.16862691]
[1718876875627,7.2595,137.75,137.71,14.1478]
[1718876875837,7.2596,137.75,137.71,13.9863]
[1718876876031,7.2596,137.75,137.71,21.2478]
[1718876876742,7.2585,137.77,137.72,7.69608629]
[1718876876910,14.3585,137.77,137.72,14.95698629]
[1718876877110,15.3061,137.79,137.71,6.8863]
[1718876877111,14.359,137.76,137.71,21.2477]
[1718876877428,15.3061,137.79,137.71,21.2477]
[1718876877429,15.3061,137.79,137.72,7.2608]
[1718876877622,7.1,137.76,137.72,7.2608]
[1718876877826,15.3061,137.79,137.72,7.2608]
[1718876878029,7.1,137.76,137.72,7.2608]
[1718876878335,14.359,137.76,137.71,21.2477]
[1718876878718,7.259,137.76,137.71,21.2477]
[1718876879036,7.1,137.75,137.71,14.1477]
[1718876879434,7.2586,137.77,137.72,7.2609]
[1718876879743,7.1,137.76,137.72,7.2609]
[1718876880132,14.359,137.76,137.72,7.2609]
[1718876880716,14.359,137.76,137.71,21.2477]
[1718876881039,7.1,137.76,137.72,7.261]
[1718876881430,7.1,137.76,137.73,7.2604]
[1718876882323,7.1,137.77,137.73,7.2604]
[1718876882644,14.3584,137.77,137.73,7.2604]
[1718876882839,14.3585,137.77,137.73,7.2604]
[1718876883043,14.3585,137.77,137.73,0.17]
[1718876883243,7.2585,137.77,137.73,0.34]
[1718876883547,14.3585,137.77,137.73,0.34]
[1718876883744,7.1,137.77,137.73,7.6005]
[1718876883955,16.5456,137.83,137.75,7.27]
[1718876884129,7.1,137.81,137.76,7.27]
[1718876884322,7.2556,137.83,137.78,7.2575]
[1718876884549,14.355,137.84,137.79,7.427]
[1718876884838,7.2548,137.84,137.79,14.5272]
[1718876885043,7.2548,137.84,137.79,0.17]
[1718876885044,7.2553,137.83,137.79,0.17]
[1718876885221,14.3553,137.83,137.79,0.17]
[1718876885422,14.3558,137.82,137.78,15.5832]
[1718876885626,14.3563,137.81,137.78,15.4132]
[1718876886248,7.1,137.81,137.78,15.4132]
[1718876886543,7.2547,137.84,137.8,7.4268]
[1718876886732,7.1,137.83,137.8,0.17]
[1718876886930,14.3554,137.83,137.78,22.6708]
[1718876887245,14.3554,137.83,137.78,29.7708]
[1718876887946,14.3554,137.83,137.78,22.6708]
[1718876888443,7.1,137.83,137.79,7.2573]
[1718876889034,7.1,137.84,137.8,7.4268]
[1718876889232,7.2544,137.85,137.8,7.4268]
[1718876889436,14.3544,137.85,137.81,7.2563]
[1718876889642,7.1,137.85,137.81,7.2563]
[1718876889950,14.3539,137.86,137.81,11.60440894]
[1718876890146,14.3539,137.86,137.81,7.2563]
[1718876890344,1.26182432,137.87,137.82,0.34]
[1718876890658,14.3544,137.85,137.81,6.5204]
[1718876891142,7.2538,137.86,137.82,0.17]
[1718876891461,7.1,137.85,137.82,0.34]
[1718876893460,14.3543,137.85,137.82,0.17]
[1718876893624,14.3543,137.85,137.81,6.5204]
[1718876893835,7.2543,137.85,137.81,6.5204]
[1718876894123,7.1,137.84,137.81,6.5204]
[1718876894924,7.1,137.84,137.81,13.7766]
[1718876895439,7.1,137.84,137.79,0.17]
[1718876895640,7.1,137.83,137.79,7.5973]
[1718876896345,14.3553,137.83,137.79,0.34]
[1718876896645,7.1,137.83,137.79,7.5972]
[1718876897451,7.1,137.83,137.8,7.2567]
[1718876897631,7.1,137.85,137.8,7.1]
[1718876897836,7.2541,137.86,137.81,7.2563]
[1718876898037,7.1,137.85,137.81,7.2563]
[1718876898542,7.1,137.85,137.81,0.17]
[1718876898858,14.3535,137.87,137.82,7.2558]
[1718876899053,17.07581192,137.91,137.83,0.34]
[1718876899227,7.1,137.89,137.84,13.6998]
[1718876899442,14.3522,137.89,137.84,20.9542]
[1718876899945,7.2522,137.89,137.84,20.9542]
[1718876900140,14.3522,137.89,137.84,20.9542]
[1718876900341,7.2522,137.89,137.84,20.9542]
[1718876900641,14.3522,137.89,137.84,20.9542]
[1718876903751,15.8143,137.91,137.81,6.4559]
[1718876903752,7.1,137.85,137.81,6.4559]
[1718876904069,14.3551,137.84,137.81,6.4559]
[1718876904858,7.1,137.84,137.81,6.4559]
[1718876906160,7.1,137.84,137.81,13.7122]
[1718876906361,7.1,137.84,137.81,6.4559]
[1718876907056,7.1,137.84,137.81,13.7122]
[1718876907650,7.1,137.84,137.81,6.4559]
[1718876908059,7.1,137.84,137.81,13.7122]
[1718876908552,7.1,137.84,137.81,6.4559]
[1718876908739,7.1,137.84,137.79,7.1]
[1718876908942,14.3555,137.83,137.78,28.8713]
[1718876909162,7.1,137.82,137.78,28.8713]
[1718876909956,7.1,137.83,137.79,7.2573]
[1718876910148,7.1,137.84,137.8,7.2567]
[1718876911544,7.2544,137.85,137.8,7.2567]
[1718876911748,7.1,137.85,137.81,7.2563]
[1718876911957,7.1,137.87,137.82,7.27]
[1718876912257,14.3528,137.88,137.83,7.27]
[1718876912566,7.2528,137.88,137.83,7.2553]
[1718876912861,14.3528,137.88,137.83,7.2553]
[1718876913444,14.3528,137.88,137.83,14.3553]